Cogmind - Beta 13 @@@ ROGUE MODE // 2024.06.20 @ 22:28:35 Player: Gordubaradu Result: Destroyed by G-34 Mercenary with Small Laser Performance ------------- Evolutions (1) 500 Regions Visited (2) 400 Robots Destroyed (66) 330 Value Destroyed (1096) 1096 Prototype IDs (2) 40 Alien Tech Used (0) 0 Bonus (11) 11 TOTAL SCORE: 2377 Bonus ------- High Alert Combat Kills 11 Cogmind --------- Core Integrity 0/400 Matter 27/300 Energy 100/100 System Corruption 2% Temperature Cool (6) Movement Core (700) Ox13 Location -9/Materials Parts ------- > --- POWER (1) -------- (None) > --- PROPULSION (2) --- (None) > --- UTILITY (4) ------ High-capacity Storage Unit Advanced Visual Processing Unit ECM Suite > --- WEAPON (2) ------- (None) > --- INVENTORY (20) --- Ion Engine Ion Engine Improved Heat Sink High-capacity Battery (250) Large Matter Pod (117) Weight Redist. System Terrain Scanner Weapon Shielding Shield Generator Field Recycling Unit (0) Light EM Pulse Cannon Light EM Pulse Cannon Rocket Launcher Improved Grenade Launcher Peak State ------------ > --- POWER ------------ Light Ion Engine > --- PROPULSION ------- Aluminum Leg Aluminum Leg > --- UTILITY ---------- High-capacity Storage Unit Advanced Visual Processing Unit ECM Suite Hardened Light Armor Plating > --- WEAPON ----------- Rocket Launcher Improved Grenade Launcher > --- INVENTORY -------- Ion Engine Ion Engine Light Ion Engine Improved Heat Sink High-capacity Battery Large Matter Pod Weight Redist. System Terrain Scanner Weapon Shielding Shield Generator Field Recycling Unit Light EM Pulse Cannon Light EM Pulse Cannon Assault Rifle Autogun Mini Grenade Launcher [Rating: 17] Favorites ----------- Power Ion Engine Engine Ion Engine Propulsion Aluminum Leg Leg Aluminum Leg Utility High-capacity Storage Unit Device ECM Suite Storage High-capacity Storage Unit Processor Visual Processing Unit Protection Hardened Light Armor Plating Weapon Assault Rifle Energy Gun EM Pulse Gun Energy Cannon Light EM Pulse Cannon Ballistic Gun Assault Rifle Launcher Mini Grenade Launcher Special Weapon Mining Laser Build | -11 -10 -9 ------- Run | Yrd Mat Mat Slots Evolved 2 | . . 2 Power . | . . . Propulsion . | . . . Utility 2 | . . 2 Weapon . | . . . Parts Attached 40 | 8 10 22 Power 3 | 1 . 2 Engine 3 | 1 . 2 Core . | . . . Reactor . | . . . Propulsion 4 | 2 . 2 Treads . | . . . Leg 4 | 2 . 2 Wheel . | . . . Hover . | . . . Flight . | . . . Utility 9 | 1 2 6 Device 2 | . . 2 Storage 2 | 1 1 . Processor 2 | . 1 1 Hackware . | . . . Protection 3 | . . 3 Artifact . | . . . Weapon 24 | 4 8 12 Energy Gun 1 | 1 . . Energy Cannon 2 | . 1 1 Ballistic Gun 9 | 2 3 4 Ballistic Cannon . | . . . Launcher 11 | . 4 7 Special Weapon 1 | 1 . . Impact Weapon . | . . . Slashing Weapon . | . . . Piercing Weapon . | . . . Special Melee Weapon . | . . . Unidentified Prototypes . | . . . Parts Lost 11 | . 1 10 Power 2 | . . 2 Propulsion 4 | . . 4 Utility 1 | . . 1 Weapon 4 | . 1 3 Highest Loss Streak 2 | . 1 2 To Critical Strikes . | . . . Average Slot Usage (%) 92 | . 94 90 Engine 11 | . 14 9 Leg 24 | . 28 20 Device 6 | . . 13 Storage 12 | . 14 11 Processor 10 | . 9 10 Protection 2 | . . 4 Energy Gun 4 | . 10 . Ballistic Gun 8 | . 6 10 Launcher 10 | . 10 10 Naked Turns . | . . . Heaviest Build 60 | 14 51 60 Greatest Support 20 | 20 20 20 Greatest Overweight (x) 4 | . 2 4 Average Overweight (x) 1 | . 1 2 Largest Inventory Capacity 20 | 8 20 20 Average Capacity 19 | 6 19 20 Most Carried 16 | 4 9 16 Average Carried 8 | 2 4 13 Final Capacity 20 | 8 20 20 Final Carried 14 | 3 9 14 Class Distribution -------------------- 100% | Mutant Dominant Class ---------------- Mutant | -10/Materials Mutant | -9/Materials Resources | -11 -10 -9 ----------- Run | Yrd Mat Mat Matter Collected 1033 | 307 217 509 Remotely . | . . . Salvage Created 1456 | 233 456 767 Parts 123 | 20 41 62 Haulers Intercepted 3 | . 1 2 Recyclers Shooed . | . . . Parts Field Recycled 30 | . . 30 Retrieved Matter 107 | . . 107 Parts Self-Destructed . | . . . Prevented . | . . . Kills | -11 -10 -9 ------- Run | Yrd Mat Mat Combat Hostiles Destroyed 26 | . 12 14 Guns 8 | . 3 5 AOE 18 | . 9 9 Classes Destroyed 10 | 3 5 2 Worker 5 | 2 2 1 Builder 11 | . 4 7 Tunneler 7 | 5 . 2 Hauler 3 | . 1 2 Recycler 5 | 1 1 3 Operator 2 | . . 2 Watcher 7 | . 3 4 Swarmer 7 | . 3 4 Grunt 17 | . 9 8 Sentry 2 | . . 2 Best Kill Streak 7 | 4 7 7 Combat Bots Only 4 | . 4 4 Max Kills in Single Turn 4 | 2 3 4 Gunslinging 1 | . . 1 Exploded 3 | . 2 3 Melee . | . . . Uniques/NPCs Destroyed . | . . . Combat | -11 -10 -9 -------- Run | Yrd Mat Mat Hostile Shots Fired 182 | . 39 143 Missed 51 | . 9 42 Damage Taken 1616 | 56 340 1220 Core 513 | 13 96 404 Absorbed by Shields . | . . . Core Remaining (%) 75 | 94 56 . Volleys Fired 100 | 10 34 56 Largest 2 | 2 2 2 Hottest 140 | 140 76 76 Shots Fired 187 | 20 64 103 Gun 133 | 19 45 69 Cannon 5 | . 1 4 Launcher 48 | . 18 30 Special 1 | 1 . . Kinetic 100 | 9 22 69 Thermal 1 | 1 . . Explosive 48 | . 18 30 Electromagnetic 38 | 10 24 4 Robot Hit Streak 6 | 6 5 6 Robot Miss Streak 7 | 4 3 7 Penetration Max . | . . . Secondary Targets 2 | . . 2 Max Gunslinging Chain 1 | . . 1 Shots Hit Robots 75 | 12 22 41 Core Hits 91 | 8 33 50 Critical Kills . | . . . Critical Parts Destroyed . | . . . Critical Strikes 1 | 1 . . Corrupt 1 | 1 . . Melee Attacks . | . . . Impact . | . . . Slashing . | . . . Piercing . | . . . Sneak Attacks . | . . . Combat Hostiles . | . . . Follow-up Attacks . | . . . Damage Inflicted 4134 | 227 1417 2490 Guns 877 | 159 212 506 Cannons 70 | . . 70 Explosions 3187 | 68 1205 1914 Melee . | . . . Ramming . | . . . Kinetic 632 | 40 86 506 Thermal 114 | 68 . 46 Explosive 3073 | . 1205 1868 Electromagnetic 315 | 119 126 70 Impact . | . . . Slashing . | . . . Piercing . | . . . Highest Corruption 2 | . . 2 Average Corruption 2 | . . 2 Corruption Purged . | . . . Corruption Blocked . | . . . Effects 15 | . . 15 Message Errors 3 | . . 3 Matter Fused 4 | . . 4 Heat Flow Errors 3 | . . 3 Energy Discharges 2 | . . 2 Data Loss (minor) 2 | . . 2 Weapon Failures 1 | . . 1 Overload Shots . | . . . Overflow Damage 221 | . 42 179 Projectiles . | . . . Explosions 221 | . 42 179 Melee . | . . . Knockbacks . | . . . Impact . | . . . Kinetic . | . . . Secondary . | . . . Self-Inflicted Damage 154 | 58 30 66 Shots 5 | 2 1 2 Rammed . | . . . Targets Rammed . | . . . Kicked . | . . . Crushed . | . . . Highest Temperature 214 | 40 44 214 Average Temperature 28 | 22 20 33 Received Heat Transfer 690 | . 138 552 Siege Activations . | . . . Robots Corrupted . | . . . Combat Hostiles . | . . . Parts Fried . | . . . Impact Corruptions . | . . . Robots Melted . | . . . Combat Hostiles . | . . . Parts Melted . | . . . Heat Transferred 100 | 50 . 50 Parts Sabotaged . | . . . Parts Stolen . | . . . Parts Stripped . | . . . Power Chain Reactions 3 | 2 . 1 Alert | -11 -10 -9 ------- Run | Yrd Mat Mat Peak Influence 468 | 40 239 468 Initial 100 | . 26 100 Average 181 | 14 117 256 Maximum Alert Level 2 | . 1 2 Low Security (%) 61 | 100 77 42 Level 1 27 | . 22 35 Level 2 10 | . . 22 Level 3 . | . . . Level 4 . | . . . Level 5 . | . . . High Security . | . . . Max Security . | . . . Squads Dispatched 6 | . 3 3 Investigation 3 | . 2 1 Extermination . | . . . Reinforcement 3 | . 1 2 Assault . | . . . Garrison . | . . . Intercept . | . . . Searches Triggered . | . . . Construction Impeded 1 | . . 1 Haulers Reinforced . | . . . Active Scanning Responses . | . . . Cargo Convoy Interrupts . | . . . Stealth | -11 -10 -9 --------- Run | Yrd Mat Mat Distress Signals 5 | . . 5 Communications Jammed . | . . . Distress Signals . | . . . Times Spotted 42 | . 19 23 Peak Tracking Total 5 | . 5 4 Tactical Retreats 3 | . . 3 Traps | -11 -10 -9 ------- Run | Yrd Mat Mat Traps Triggered 1 | . . 1 Indirectly . | . . . Trap Hack Attempts . | . . . Triggered . | . . . Disarmed . | . . . Reprogrammed . | . . . Reused . | . . . Traps Extracted . | . . . Installed . | . . . Triggered . | . . . Machines | -11 -10 -9 ---------- Run | Yrd Mat Mat Machines Disabled 3 | . 1 2 Max in Single Turn 1 | . 1 1 Machines Repaired . | . . . Machines Dismantled . | . . . Machines Sabotaged . | . . . Overloaded Fab Kills . | . . . Hacking | -11 -10 -9 --------- Run | Yrd Mat Mat Machines Accessed 5 | . 4 1 Terminals 3 | . 2 1 Fabricators . | . . . Repair Stations . | . . . Recycling Units 2 | . 2 . Scanalyzers . | . . . Garrison Access . | . . . Total Hacks 16 | . 12 4 Successful 9 | . 6 3 Failed 7 | . 6 1 Catastrophic 2 | . 2 . Database Lockouts . | . . . Manual . | . . . Terminals 6 | . 2 4 Fabricators . | . . . Repair Stations . | . . . Recycling Units 10 | . 10 . Scanalyzers . | . . . Garrison Access . | . . . Terminal Hacks 4 | . 1 3 Record 3 | . . 3 Prototype ID Bank 1 | . 1 . Fabricator Hacks . | . . . Repair Station Hacks . | . . . Recycling Unit Hacks 5 | . 5 . Recycle Component 2 | . 2 . Process 2 | . 2 . Retrieve Components 1 | . 1 . Scanalyzer . | . . . Garrison Access Hacks . | . . . Unauthorized Hacks . | . . . Terminals . | . . . Fabricators . | . . . Repair Stations . | . . . Recycling Units . | . . . Scanalyzers . | . . . Garrison Access . | . . . Data Cores Recovered . | . . . Used . | . . . Hacking Detections 3 | . 2 1 Full Trace Events 3 | . 2 1 Feedback Events . | . . . Feedback Blocked . | . . . Robot Schematics Acquired . | . . . Robots Built . | . . . Authchips . | . . . Time . | . . . Total Robot Build Rating . | . . . Part Schematics Acquired . | . . . Parts Built . | . . . Authchips . | . . . Time . | . . . Total Part Build Rating . | . . . Parts Repaired . | . . . Time . | . . . Parts Recycled 2 | . 2 . Recycled Matter 222 | . 222 . Retrieved Matter . | . . . Retrieved Components 1 | . 1 . Parts Scanalyzed . | . . . Part Schematics Acquired . | . . . Parts Damaged . | . . . Bothacking | -11 -10 -9 ------------ Run | Yrd Mat Mat Used RIF Installer . | . . . Robots Hacked . | . . . Non-combat . | . . . Combat . | . . . Robot Hacks Applied . | . . . Relay Couplers Released . | . . . Fabnet Peak Effective % . | . . . Robots Rewired . | . . . Allies Hacked . | . . . Hacks Repelled . | . . . Allies | -11 -10 -9 -------- Run | Yrd Mat Mat Total Allies . | . . . Largest Group . | . . . Highest-Rated Group . | . . . Highest-Rated Ally . | . . . Total Orders . | . . . Ally Attacks . | . . . Total Damage . | . . . Kills . | . . . Allies Corrupted . | . . . Allies Melted . | . . . Intel | -11 -10 -9 ------- Run | Yrd Mat Mat Robot Analysis Total . | . . . Derelict Logs Recovered . | . . . Drone Launches . | . . . Drone Recoveries . | . . . Exploration | -11 -10 -9 ------------- Run | Yrd Mat Mat Turns Passed 2481 | 125 1125 1231 Spaces Moved 792 | 66 386 340 Core 6 | 6 . . Treads . | . . . Legs 786 | 60 386 340 Wheels . | . . . Hover . | . . . Flight . | . . . Fastest Speed 50 | 50 120 260 Average Speed 243 | 113 251 260 Slowest Speed 400 | 120 260 400 Overloaded Moves . | . . . Propulsion Burnouts . | . . . Robots Hopped . | . . . Cave-ins Triggered . | . . . Exploration Rate (%) 27 | 5 49 28 Regions Visited 2 Branch Regions . Pre-discovered Areas . | . . . Known Exits Taken . | . . . Unknown Exits Taken 2 | 1 1 . Scrap Searched . | . . . Spaces Dug . | . . . Terrain Destroyed 337 | 7 100 230 Melee . | . . . Projectile . | . . . AOE 337 | 7 100 230 Terrain Rammed . | . . . Walls Destroyed . | . . . Machines Disabled . | . . . Actions | -11 -10 -9 --------- Run | Yrd Mat Mat Total 1150 | 94 475 581 Wait 178 | . 34 144 Move 790 | 65 385 340 Hop . | . . . Pick Up 36 | 10 11 15 Fast Attach . | . . . Attach 17 | 7 2 8 Detach . | . . . Swap 23 | 1 8 14 Drop 6 | 1 1 4 Fire 100 | 10 34 56 Melee . | . . . Ram . | . . . Kick . | . . . Crush . | . . . Escape Stasis . | . . . Rewire . | . . . Trap . | . . . Miscellaneous . | . . . Route ------- -11/Scrapyard -10/Materials (discovered 2 exits: *Mat x2) -9/Materials History --------- Turn | Location | Event 20 | -11/Scrapyard | Discovered new exit (range 15) 126 | -11/Scrapyard | Entered Materials 312 | -10/Materials | Build established: Mutant 432 | -10/Materials | Discovered new exit (range 5) 806 | -10/Materials | Discovered new exit (range 11) 1251 | -10/Materials | Entered another Materials area 1251 | -9/Materials | Evolved 2 slots: Utility x2 2403 | -9/Materials | Core integrity fell below 50% 2465 | -9/Materials | Core integrity fell below 20% 2482 | -9/Materials | Destroyed by G-34 Mercenary with Small Laser Last Messages --------------- 02409_ U-05 Engineer builds a Wall. 02413_ U-05 Engineer lays Concrete. 02417_ U-05 Engineer builds a Wall. 02418_ Lgt. Ion Engine destroyed. 02421_ U-05 Engineer builds a Wall. 02425_ U-05 Engineer builds a Door. 02429_ U-05 Engineer lays Concrete. 02430_ U-05 Engineer builds a Wall. 02430_ U-05 Engineer lays Concrete. 02435_ U-05 Engineer builds a Wall. 02439_ U-05 Engineer lays Concrete. 02440_ U-05 Engineer builds a Wall. 02450_ U-05 Engineer lays Concrete. 02456_ Aluminum Leg destroyed. 02463_ U-05 Engineer lays Concrete. 02466_ U-05 Engineer builds a Wall. 02466_ Mni. Grenade Launcher destroyed. 02472_ U-05 Engineer lays Concrete. 02480_ U-05 Engineer builds a Wall. 02481_ U-05 Engineer lays Concrete. Map ----- +----------------------------------------------------+ | ????????????????????????########?????# | | ????????????????????????# """ #?????# | | ????????????????????????# """ #?????# | | ????????????????????????# """ #????## | | ????????????????????????# #????## | | ????????????????????????# #?#### | | ????????????????????????# ### # | | ?????????????????###########+#############+ | | ?????????????????# | | ?????????????????# | | ?????????????????# | | ?????????????????################# #######+ | | ????????????????????????????# # # | | ????????????????????????????#### # # [ | | ??????????????????????????????# # # | | ????????????###########???????#### # """ "" | | ????####????# """ #??????????# # """ "" | | ????#"""????# "T ##?????????# # """ "" | | ???##"T"###?# #?????????#=######## | | ???# ### #??????????#=#??????? | | ???# * / #####+##########?????# #??????? | | ???#""" # # # # ####??#=#??????? | | ???#""" # ### # """#??# #??????? | | ???#""" + u g +% "" Y"???#[#??????? | | ???# # # # # """ """???#*#??????? | | ???######## # #u @ # """ ###??## ##?????? | | ????# # ## ## #???### ###????? | | ????# ##+####### # # #####??## # # ##???? | | ????# # "T" # # # ##??????# # # #???? | | ????# # ### ####???????#### ####???? | | ????# # #?# #?????????# # ###### | | ????# # """ ### ##????????### | | ????# # """ !### ###?????????# | | ????# # """ ### # #?????????# | | ????# ########## ###?????????# ###### | | ????# ############ ### | | ????############# # !# #?# | | ???????????????## # """ # ### "" | | ???????????????## ##! """"" */ / "" | | ????????????????# ## """"" !#! ### "" | | ????????????????# ## """"" ##!# # | | ????????????????# ## """ # #####+# | | ????????????##### ## = # # # | | ????????????#!! ## ###+####### | | ????????????#! ### ######## # | | ????????????#[[ # ## ### "T" # | | ????????????#[[ # ###### # | | ????????????#] + ! # | | ????????????#]] ### # ################ | | ????????????##### ## ## # ##??????????? | +----------------------------------------------------+ Best States ------------- Heat Dissipation 28 Energy Generation 10 Energy Capacity 250 Matter Stores 300 Matter Capacity 300 Sight Range 20 Terrain Scan Density 10 ECM Strength 1 Armor Coverage 150 Evasion (%) 55 Item Schematics ----------------- None Robot Schematics ------------------ None Fabricated ------------ Nothing Alien Tech Used ----------------- None Achievements -------------- None Challenges ------------ None Game ------ Seed WardroneDisruptorSpecial Manual? 0 Play Time 00:30:08 Cumulative 4.0 hours Start 2024.06.20 @ 20:12:42 End 2024.06.20 @ 22:28:35 Sessions 3 Manual Loads 0 Difficulty Rogue Special Mode None Game No. 6 Rogue 6 Adventurer 0 Explorer 0 Win Type - Total 0 Types 0/0/0/0/0/0/0/0/0 Lore% 5 Gallery% 6 Achievement% 8 Wizard Run 0 Options --------- Layout 1 ASCII 0 Keyboard 0 Movement Mouse Keybinds 0 Fullscreen 1 Font 32/SmallcapsGlow Map View 50x35 Zoom Use 0% Tactical HUD 1 Map Filters NONE Filters NONE Steam 1 RUN: d00f3f20-56d4-4882-a9a5-c9f8328d9af6